[Event "Titled Tuesday Blitz September 13 Late 2022"]
[White "Loay, Sameer"]
[Black "Trost, Edvin"]
[WhiteFideId "8104239"]
[BlackFideId "1729519"]
[WhiteElo "2040"]
[BlackElo "2186"]
[Result "1/2-1/2"]
[Round "06"]
[TimeControl "180+1"]
[Date "2022.09.13"]
[WhiteClock "0:00:31"]
[BlackClock "0:00:25"]

1. Nf3 {[%clk 0:03:00]}  d5 {[%clk 0:02:54]} 2. g3 {[%clk 0:03:01]}  c5 {[%clk 0:02:54]} 3. Bg2 {[%clk 0:03:02]}  Nc6 {[%clk 0:02:54]} 4. d4 {[%clk 0:03:03]}  Nf6 {[%clk 0:02:51]} 5. O-O {[%clk 0:03:03]}  cxd4 {[%clk 0:02:51]} 6. Nxd4 {[%clk 0:03:03]}  e5 {[%clk 0:02:51]} 7. Nxc6 {[%clk 0:03:03]}  bxc6 {[%clk 0:02:52]} 8. c4 {[%clk 0:03:04]}  Be6 {[%clk 0:02:50]} 9. Nc3 {[%clk 0:03:03]}  Be7 {[%clk 0:02:49]} 10. Bg5 {[%clk 0:03:02]}  e4 {[%clk 0:02:44]} 11. Qa4 {[%clk 0:03:01]}  O-O {[%clk 0:02:43]} 12. Rfd1 {[%clk 0:02:59]}  Qb6 {[%clk 0:02:40]} 13. cxd5 {[%clk 0:02:55]}  cxd5 {[%clk 0:02:39]} 14. Bxf6 {[%clk 0:02:48]}  Bxf6 {[%clk 0:02:35]} 15. Nxd5 {[%clk 0:02:47]}  Bxd5 {[%clk 0:02:32]} 16. Rxd5 {[%clk 0:02:48]}  Qxb2 {[%clk 0:02:22]} 17. Rad1 {[%clk 0:02:47]}  Qxe2 {[%clk 0:02:16]} 18. Qxe4 {[%clk 0:02:47]}  Qxa2 {[%clk 0:02:10]} 19. Rd7 {[%clk 0:02:33]}  Rae8 {[%clk 0:02:01]} 20. Qb7 {[%clk 0:02:29]}  Rd8 {[%clk 0:01:34]} 21. Bd5 {[%clk 0:01:52]}  Rxd7 {[%clk 0:01:32]} 22. Qxd7 {[%clk 0:01:52]}  Qc2 {[%clk 0:01:26]} 23. Re1 {[%clk 0:01:53]}  Qc8 {[%clk 0:01:15]} 24. Qxa7 {[%clk 0:01:40]}  Qd8 {[%clk 0:01:04]} 25. Ba2 {[%clk 0:01:36]}  g6 {[%clk 0:01:01]} 26. Kg2 {[%clk 0:01:32]}  Kg7 {[%clk 0:00:59]} 27. h4 {[%clk 0:01:28]}  Qa8+ {[%clk 0:00:56]} 28. Qxa8 {[%clk 0:01:28]}  Rxa8 {[%clk 0:00:57]} 29. Bd5 {[%clk 0:01:26]}  Ra5 {[%clk 0:00:56]} 30. Rd1 {[%clk 0:01:25]}  Ra7 {[%clk 0:00:54]} 31. Bf3 {[%clk 0:01:15]}  Rc7 {[%clk 0:00:53]} 32. Rd2 {[%clk 0:01:15]}  Be7 {[%clk 0:00:51]} 33. h5 {[%clk 0:01:10]}  Bg5 {[%clk 0:00:51]} 34. Re2 {[%clk 0:01:09]}  Rc5 {[%clk 0:00:50]} 35. hxg6 {[%clk 0:01:08]}  hxg6 {[%clk 0:00:51]} 36. Be4 {[%clk 0:01:05]}  Rc3 {[%clk 0:00:50]} 37. Rc2 {[%clk 0:01:04]}  Ra3 {[%clk 0:00:50]} 38. Rc7 {[%clk 0:01:00]}  Ra5 {[%clk 0:00:48]} 39. Bd3 {[%clk 0:00:59]}  Rd5 {[%clk 0:00:34]} 40. Bc4 {[%clk 0:00:54]}  Rf5 {[%clk 0:00:34]} 41. f4 {[%clk 0:00:54]}  Bd8 {[%clk 0:00:32]} 42. Rd7 {[%clk 0:00:53]}  Ba5 {[%clk 0:00:32]} 43. Kf3 {[%clk 0:00:52]}  Rf6 {[%clk 0:00:30]} 44. g4 {[%clk 0:00:50]}  g5 {[%clk 0:00:30]} 45. f5 {[%clk 0:00:50]}  Bb6 {[%clk 0:00:28]} 46. Bd5 {[%clk 0:00:42]}  Bg1 {[%clk 0:00:27]} 47. Ke4 {[%clk 0:00:35]}  Bh2 {[%clk 0:00:27]} 48. Rb7 {[%clk 0:00:34]}  Bf4 {[%clk 0:00:27]} 49. Ra7 {[%clk 0:00:33]}  Bb8 {[%clk 0:00:26]} 50. Rb7 {[%clk 0:00:33]}  Bf4 {[%clk 0:00:27]} 51. Ra7 {[%clk 0:00:31]}  Kf8 {[%clk 0:00:26]} 52. Ra8+ {[%clk 0:00:30]}  Kg7 {[%clk 0:00:25]} 53. Ra7 {[%clk 0:00:31]} 1/2-1/2


[Site "https://www.chess.com"]

[Event "Titled Tuesday Blitz September 13 Late 2022"]
[White "Naroditsky, Daniel"]
[Black "Kollars, Dmitrij"]
[WhiteFideId "2026961"]
[BlackFideId "12909572"]
[WhiteElo "2628"]
[BlackElo "2584"]
[Result "1-0"]
[Round "06"]
[TimeControl "180+1"]
[Date "2022.09.13"]
[WhiteClock "0:00:28"]
[BlackClock "0:00:03"]

1. e4 {[%clk 0:03:00]}  c5 {[%clk 0:02:56]} 2. Nf3 {[%clk 0:03:01]}  d6 {[%clk 0:02:55]} 3. Bb5+ {[%clk 0:03:01]}  Bd7 {[%clk 0:02:54]} 4. c4 {[%clk 0:03:01]}  Nf6 {[%clk 0:02:53]} 5. Nc3 {[%clk 0:03:02]}  g6 {[%clk 0:02:53]} 6. O-O {[%clk 0:03:01]}  Bg7 {[%clk 0:02:53]} 7. d4 {[%clk 0:03:02]}  cxd4 {[%clk 0:02:53]} 8. Nxd4 {[%clk 0:03:03]}  O-O {[%clk 0:02:52]} 9. Bxd7 {[%clk 0:03:04]}  Qxd7 {[%clk 0:02:53]} 10. Bg5 {[%clk 0:02:57]}  Nc6 {[%clk 0:02:50]} 11. Nde2 {[%clk 0:02:57]}  a6 {[%clk 0:02:48]} 12. Bxf6 {[%clk 0:02:54]}  Bxf6 {[%clk 0:02:18]} 13. Nd5 {[%clk 0:02:52]}  Rae8 {[%clk 0:02:06]} 14. Nxf6+ {[%clk 0:02:49]}  exf6 {[%clk 0:02:07]} 15. Nc3 {[%clk 0:02:40]}  f5 {[%clk 0:01:55]} 16. exf5 {[%clk 0:02:41]}  Qxf5 {[%clk 0:01:56]} 17. Qxd6 {[%clk 0:02:41]}  Qc2 {[%clk 0:01:56]} 18. Nd5 {[%clk 0:02:23]}  Re6 {[%clk 0:01:48]} 19. Qf4 {[%clk 0:02:23]}  Qxb2 {[%clk 0:01:44]} 20. Rab1 {[%clk 0:02:23]}  Qe5 {[%clk 0:01:44]} 21. Rxb7 {[%clk 0:01:49]}  Qxf4 {[%clk 0:01:44]} 22. Nxf4 {[%clk 0:01:50]}  Re4 {[%clk 0:01:45]} 23. Rb6 {[%clk 0:01:49]}  Rxc4 {[%clk 0:01:36]} 24. Nd5 {[%clk 0:01:45]}  Kg7 {[%clk 0:01:00]} 25. Rxa6 {[%clk 0:01:45]}  Rc5 {[%clk 0:00:50]} 26. Ne3 {[%clk 0:01:40]}  Rb8 {[%clk 0:00:46]} 27. h4 {[%clk 0:01:31]}  Rb2 {[%clk 0:00:40]} 28. a4 {[%clk 0:01:31]}  Ra2 {[%clk 0:00:37]} 29. Rd1 {[%clk 0:01:28]}  Nb4 {[%clk 0:00:29]} 30. Ra7 {[%clk 0:01:26]}  Nc6 {[%clk 0:00:21]} 31. Rc7 {[%clk 0:01:06]}  Rxa4 {[%clk 0:00:20]} 32. g3 {[%clk 0:01:07]}  Raa5 {[%clk 0:00:10]} 33. Kg2 {[%clk 0:00:49]}  Ne5 {[%clk 0:00:09]} 34. Re7 {[%clk 0:00:50]}  Nc6 {[%clk 0:00:09]} 35. Re4 {[%clk 0:00:46]}  Re5 {[%clk 0:00:09]} 36. Rf4 {[%clk 0:00:46]}  Rac5 {[%clk 0:00:09]} 37. Rd7 {[%clk 0:00:44]}  Re7 {[%clk 0:00:09]} 38. Rd6 {[%clk 0:00:44]}  Ne5 {[%clk 0:00:09]} 39. Nd5 {[%clk 0:00:42]}  Rd7 {[%clk 0:00:08]} 40. Nf6 {[%clk 0:00:34]}  Rxd6 {[%clk 0:00:08]} 41. Ne8+ {[%clk 0:00:35]}  Kf8 {[%clk 0:00:07]} 42. Nxd6 {[%clk 0:00:36]}  Rc6 {[%clk 0:00:06]} 43. Nb5 {[%clk 0:00:32]}  Kg7 {[%clk 0:00:06]} 44. Re4 {[%clk 0:00:30]}  Rc5 {[%clk 0:00:06]} 45. Nd6 {[%clk 0:00:31]}  Rd5 {[%clk 0:00:05]} 46. Ne8+ {[%clk 0:00:30]}  Kh6 {[%clk 0:00:03]} 47. Nf6 {[%clk 0:00:29]}  Ra5 {[%clk 0:00:03]} 48. Rxe5 {[%clk 0:00:28]} 1-0


[Site "https://www.chess.com"]

[Event "Titled Tuesday Blitz September 13 Late 2022"]
[White "Sadhwani, Raunak"]
[Black "Lenderman, Aleksandr"]
[WhiteFideId "35093487"]
[BlackFideId "2021285"]
[WhiteElo "2656"]
[BlackElo "2607"]
[Result "1-0"]
[Round "06"]
[TimeControl "180+1"]
[Date "2022.09.13"]
[WhiteClock "0:00:10"]
[BlackClock "0:00:06"]

1. d4 {[%clk 0:03:00]}  e6 {[%clk 0:03:00]} 2. Nf3 {[%clk 0:03:00]}  c5 {[%clk 0:02:59]} 3. e3 {[%clk 0:02:56]}  Nf6 {[%clk 0:02:58]} 4. b3 {[%clk 0:02:55]}  cxd4 {[%clk 0:02:56]} 5. Nxd4 {[%clk 0:02:54]}  d5 {[%clk 0:02:55]} 6. Bb2 {[%clk 0:02:55]}  Be7 {[%clk 0:02:55]} 7. Be2 {[%clk 0:02:54]}  O-O {[%clk 0:02:55]} 8. O-O {[%clk 0:02:55]}  b6 {[%clk 0:02:55]} 9. Nd2 {[%clk 0:02:54]}  Bb7 {[%clk 0:02:56]} 10. c4 {[%clk 0:02:54]}  Nbd7 {[%clk 0:02:56]} 11. Rc1 {[%clk 0:02:51]}  Rc8 {[%clk 0:02:55]} 12. N4f3 {[%clk 0:02:51]}  Nc5 {[%clk 0:02:52]} 13. cxd5 {[%clk 0:02:49]}  Nxd5 {[%clk 0:02:51]} 14. Nc4 {[%clk 0:02:50]}  Nb4 {[%clk 0:02:49]} 15. Nd4 {[%clk 0:02:42]}  Nxa2 {[%clk 0:02:39]} 16. Ra1 {[%clk 0:02:42]}  Nb4 {[%clk 0:02:38]} 17. Rxa7 {[%clk 0:02:42]}  Ra8 {[%clk 0:02:37]} 18. Qa1 {[%clk 0:02:34]}  Qb8 {[%clk 0:02:26]} 19. Rxa8 {[%clk 0:02:27]}  Bxa8 {[%clk 0:02:27]} 20. Ba3 {[%clk 0:02:01]}  Nd5 {[%clk 0:02:26]} 21. Bf3 {[%clk 0:01:53]}  Bf6 {[%clk 0:02:25]} 22. Qb1 {[%clk 0:01:51]}  Rc8 {[%clk 0:02:20]} 23. Rc1 {[%clk 0:01:51]}  Bxd4 {[%clk 0:02:16]} 24. exd4 {[%clk 0:01:52]}  Nd7 {[%clk 0:02:16]} 25. Bd6 {[%clk 0:01:47]}  Qa7 {[%clk 0:02:14]} 26. Qb2 {[%clk 0:01:47]}  N7f6 {[%clk 0:02:11]} 27. Ra1 {[%clk 0:01:45]}  Qd7 {[%clk 0:02:11]} 28. Be5 {[%clk 0:01:43]}  Qd8 {[%clk 0:02:06]} 29. Bxf6 {[%clk 0:01:31]}  Nxf6 {[%clk 0:01:55]} 30. Bxa8 {[%clk 0:01:27]}  Rxa8 {[%clk 0:01:56]} 31. Rxa8 {[%clk 0:01:24]}  Qxa8 {[%clk 0:01:57]} 32. Nxb6 {[%clk 0:01:24]}  Qe4 {[%clk 0:01:58]} 33. Qc1 {[%clk 0:01:15]}  h6 {[%clk 0:01:56]} 34. Qd1 {[%clk 0:01:15]}  Qf4 {[%clk 0:01:51]} 35. g3 {[%clk 0:01:10]}  Qd6 {[%clk 0:01:48]} 36. Nc4 {[%clk 0:01:10]}  Qb4 {[%clk 0:01:48]} 37. Ne3 {[%clk 0:01:09]}  Ne4 {[%clk 0:01:47]} 38. d5 {[%clk 0:01:05]}  exd5 {[%clk 0:01:24]} 39. Nxd5 {[%clk 0:01:06]}  Qc5 {[%clk 0:01:23]} 40. Ne3 {[%clk 0:01:05]}  g6 {[%clk 0:01:22]} 41. Qc2 {[%clk 0:01:01]}  Qd4 {[%clk 0:01:19]} 42. Qc4 {[%clk 0:00:55]}  Qe5 {[%clk 0:00:59]} 43. Kg2 {[%clk 0:00:45]}  Nd6 {[%clk 0:00:49]} 44. Qd5 {[%clk 0:00:44]}  Qe7 {[%clk 0:00:49]} 45. b4 {[%clk 0:00:44]}  Qc7 {[%clk 0:00:40]} 46. Ng4 {[%clk 0:00:31]}  h5 {[%clk 0:00:26]} 47. Nf6+ {[%clk 0:00:28]}  Kf8 {[%clk 0:00:26]} 48. h3 {[%clk 0:00:17]}  Ke7 {[%clk 0:00:23]} 49. Qe5+ {[%clk 0:00:14]}  Kd8 {[%clk 0:00:22]} 50. Nd5 {[%clk 0:00:13]}  Qc6 {[%clk 0:00:22]} 51. Kh2 {[%clk 0:00:13]}  Nf5 {[%clk 0:00:19]} 52. g4 {[%clk 0:00:10]}  hxg4 {[%clk 0:00:19]} 53. hxg4 {[%clk 0:00:11]}  Qd6 {[%clk 0:00:18]} 54. Qxd6+ {[%clk 0:00:12]}  Nxd6 {[%clk 0:00:19]} 55. Kg3 {[%clk 0:00:12]}  g5 {[%clk 0:00:17]} 56. Nc3 {[%clk 0:00:11]}  Kc7 {[%clk 0:00:16]} 57. Kf3 {[%clk 0:00:11]}  Kc6 {[%clk 0:00:14]} 58. Ne4 {[%clk 0:00:10]}  Nc4 {[%clk 0:00:09]} 59. Nxg5 {[%clk 0:00:10]}  f6 {[%clk 0:00:08]} 60. Ne4 {[%clk 0:00:11]}  Ne5+ {[%clk 0:00:08]} 61. Kf4 {[%clk 0:00:09]}  Nd3+ {[%clk 0:00:06]} 62. Kf5 {[%clk 0:00:10]} 1-0


[Site "https://www.chess.com"]

[Event "Titled Tuesday Blitz September 13 Late 2022"]
[White "Shirov, Alexei"]
[Black "Martins, Bruno Andre Leite"]
[WhiteFideId "2209390"]
[BlackFideId "1942255"]
[WhiteElo "2678"]
[BlackElo "2282"]
[Result "1-0"]
[Round "06"]
[TimeControl "180+1"]
[Date "2022.09.13"]
[WhiteClock "0:00:21"]
[BlackClock "0:00:09"]

1. e4 {[%clk 0:03:00]}  e6 {[%clk 0:02:46]} 2. d4 {[%clk 0:02:59]}  d5 {[%clk 0:02:46]} 3. e5 {[%clk 0:03:00]}  c5 {[%clk 0:02:46]} 4. c3 {[%clk 0:03:01]}  Nc6 {[%clk 0:02:45]} 5. Nf3 {[%clk 0:03:01]}  Qb6 {[%clk 0:02:45]} 6. Bd3 {[%clk 0:02:59]}  Bd7 {[%clk 0:02:45]} 7. O-O {[%clk 0:02:59]}  cxd4 {[%clk 0:02:42]} 8. Re1 {[%clk 0:02:59]}  Nge7 {[%clk 0:02:38]} 9. Na3 {[%clk 0:02:40]}  Ng6 {[%clk 0:02:20]} 10. Rb1 {[%clk 0:02:10]}  a6 {[%clk 0:02:10]} 11. c4 {[%clk 0:02:05]}  dxc4 {[%clk 0:01:36]} 12. Nxc4 {[%clk 0:02:04]}  Qc7 {[%clk 0:01:35]} 13. Ng5 {[%clk 0:01:44]}  Ncxe5 {[%clk 0:01:18]} 14. Nxe5 {[%clk 0:01:43]}  Nxe5 {[%clk 0:01:18]} 15. Bf4 {[%clk 0:01:44]}  Bd6 {[%clk 0:01:18]} 16. Rc1 {[%clk 0:01:43]}  Qb8 {[%clk 0:01:16]} 17. Be4 {[%clk 0:00:46]}  Nf3+ {[%clk 0:00:52]} 18. Qxf3 {[%clk 0:00:34]}  Bxf4 {[%clk 0:00:53]} 19. Nxf7 {[%clk 0:00:34]}  Rf8 {[%clk 0:00:36]} 20. Bxh7 {[%clk 0:00:33]}  Bxc1 {[%clk 0:00:34]} 21. Rxc1 {[%clk 0:00:27]}  Ke7 {[%clk 0:00:34]} 22. Bg6 {[%clk 0:00:25]}  Be8 {[%clk 0:00:29]} 23. Qa3+ {[%clk 0:00:23]}  Kf6 {[%clk 0:00:26]} 24. Qxf8 {[%clk 0:00:23]}  Kxg6 {[%clk 0:00:23]} 25. Nd6 {[%clk 0:00:23]}  Bc6 {[%clk 0:00:19]} 26. Qf7+ {[%clk 0:00:23]}  Kh7 {[%clk 0:00:19]} 27. Qh5+ {[%clk 0:00:23]}  Kg8 {[%clk 0:00:19]} 28. Qf7+ {[%clk 0:00:24]}  Kh7 {[%clk 0:00:18]} 29. Qxe6 {[%clk 0:00:24]}  Qf8 {[%clk 0:00:16]} 30. Rc5 {[%clk 0:00:23]}  g6 {[%clk 0:00:13]} 31. Rg5 {[%clk 0:00:23]}  Qg7 {[%clk 0:00:13]} 32. Nf5 {[%clk 0:00:22]}  Qg8 {[%clk 0:00:09]} 33. Rh5+ {[%clk 0:00:21]} 1-0


[Site "https://www.chess.com"]

[Event "Titled Tuesday Blitz September 13 Late 2022"]
[White "Tanenbaum, Zachary"]
[Black "Dilmukhametov, Artur"]
[WhiteFideId "2060850"]
[BlackFideId "24179922"]
[WhiteElo "2175"]
[BlackElo "2206"]
[Result "1-0"]
[Round "06"]
[TimeControl "180+1"]
[Date "2022.09.13"]
[WhiteClock "0:00:04"]
[BlackClock "0:00:09"]

1. e4 {[%clk 0:03:00]}  e6 {[%clk 0:03:00]} 2. d4 {[%clk 0:03:00]}  d5 {[%clk 0:03:00]} 3. Nc3 {[%clk 0:03:01]}  Bb4 {[%clk 0:03:00]} 4. exd5 {[%clk 0:03:01]}  exd5 {[%clk 0:03:00]} 5. Bd3 {[%clk 0:03:01]}  c6 {[%clk 0:03:01]} 6. Nf3 {[%clk 0:03:00]}  Ne7 {[%clk 0:02:58]} 7. O-O {[%clk 0:02:59]}  Bf5 {[%clk 0:02:57]} 8. Bxf5 {[%clk 0:02:58]}  Nxf5 {[%clk 0:02:58]} 9. Re1+ {[%clk 0:02:58]}  Ne7 {[%clk 0:02:58]} 10. Qd3 {[%clk 0:02:51]}  Nd7 {[%clk 0:02:50]} 11. Bf4 {[%clk 0:01:15]}  O-O {[%clk 0:02:38]} 12. h3 {[%clk 0:01:11]}  Ng6 {[%clk 0:02:34]} 13. Bg3 {[%clk 0:01:09]}  Nf6 {[%clk 0:02:31]} 14. Ne5 {[%clk 0:01:05]}  Ne4 {[%clk 0:02:26]} 15. a3 {[%clk 0:01:00]}  Bxc3 {[%clk 0:02:18]} 16. bxc3 {[%clk 0:01:00]}  Nxe5 {[%clk 0:02:17]} 17. dxe5 {[%clk 0:00:57]}  Qa5 {[%clk 0:01:56]} 18. c4 {[%clk 0:00:55]}  Nxg3 {[%clk 0:01:56]} 19. Qxg3 {[%clk 0:00:53]}  dxc4 {[%clk 0:01:56]} 20. Re4 {[%clk 0:00:52]}  Rfe8 {[%clk 0:01:47]} 21. f4 {[%clk 0:00:47]}  Qd5 {[%clk 0:01:44]} 22. Rae1 {[%clk 0:00:46]}  Qe6 {[%clk 0:01:03]} 23. Qf3 {[%clk 0:00:44]}  g6 {[%clk 0:01:03]} 24. g4 {[%clk 0:00:43]}  Qd5 {[%clk 0:00:57]} 25. Kh2 {[%clk 0:00:40]}  Rad8 {[%clk 0:00:55]} 26. R1e2 {[%clk 0:00:37]}  Qd1 {[%clk 0:00:44]} 27. Qf2 {[%clk 0:00:29]}  c3 {[%clk 0:00:43]} 28. f5 {[%clk 0:00:26]}  Rd2 {[%clk 0:00:43]} 29. e6 {[%clk 0:00:25]}  fxe6 {[%clk 0:00:41]} 30. fxe6 {[%clk 0:00:23]}  Rf8 {[%clk 0:00:37]} 31. Qg2 {[%clk 0:00:09]}  Re8 {[%clk 0:00:19]} 32. Qf3 {[%clk 0:00:08]}  Rxe2+ {[%clk 0:00:19]} 33. Qxe2 {[%clk 0:00:03]}  Qxe2+ {[%clk 0:00:17]} 34. Rxe2 {[%clk 0:00:04]}  Kg7 {[%clk 0:00:17]} 35. g5 {[%clk 0:00:04]}  Kf8 {[%clk 0:00:17]} 36. Kg3 {[%clk 0:00:04]}  Ke7 {[%clk 0:00:17]} 37. Re3 {[%clk 0:00:03]}  Rd8 {[%clk 0:00:15]} 38. Rxc3 {[%clk 0:00:02]}  Kxe6 {[%clk 0:00:15]} 39. Re3+ {[%clk 0:00:02]}  Kf7 {[%clk 0:00:15]} 40. Rf3+ {[%clk 0:00:03]}  Kg7 {[%clk 0:00:15]} 41. h4 {[%clk 0:00:03]}  Rd5 {[%clk 0:00:14]} 42. Re3 {[%clk 0:00:03]}  Kf7 {[%clk 0:00:15]} 43. Rf3+ {[%clk 0:00:03]}  Rf5 {[%clk 0:00:15]} 44. Rb3 {[%clk 0:00:03]}  Ke7 {[%clk 0:00:16]} 45. Rxb7+ {[%clk 0:00:03]}  Kd6 {[%clk 0:00:17]} 46. Rxa7 {[%clk 0:00:03]}  Rc5 {[%clk 0:00:13]} 47. Rxh7 {[%clk 0:00:04]}  Rxc2 {[%clk 0:00:13]} 48. Rh6 {[%clk 0:00:04]}  Rc3+ {[%clk 0:00:13]} 49. Kf4 {[%clk 0:00:04]}  Rc4+ {[%clk 0:00:13]} 50. Kg3 {[%clk 0:00:04]}  Rc3+ {[%clk 0:00:14]} 51. Kf2 {[%clk 0:00:05]}  Rxa3 {[%clk 0:00:15]} 52. Rxg6+ {[%clk 0:00:05]}  Ke5 {[%clk 0:00:13]} 53. h5 {[%clk 0:00:03]}  Kf5 {[%clk 0:00:12]} 54. Rg7 {[%clk 0:00:03]}  Ra2+ {[%clk 0:00:10]} 55. Kf3 {[%clk 0:00:03]}  Ra3+ {[%clk 0:00:10]} 56. Ke2 {[%clk 0:00:03]}  Rg3 {[%clk 0:00:10]} 57. h6 {[%clk 0:00:03]}  Rh3 {[%clk 0:00:08]} 58. h7 {[%clk 0:00:03]}  c5 {[%clk 0:00:08]} 59. g6 {[%clk 0:00:03]}  Kf6 {[%clk 0:00:09]} 60. Rg8 {[%clk 0:00:04]} 1-0


[Site "https://www.chess.com"]

[Event "Titled Tuesday Blitz September 13 Late 2022"]
[White "Vlassov, Nikolai"]
[Black "Gheorghiu, Calin"]
[WhiteFideId "4103360"]
[BlackFideId "1200305"]
[WhiteElo "2324"]
[BlackElo "2168"]
[Result "0-1"]
[Round "06"]
[TimeControl "180+1"]
[Date "2022.09.13"]
[WhiteClock "0:00:18"]
[BlackClock "0:00:16"]

1. e4 {[%clk 0:03:00]}  c5 {[%clk 0:02:57]} 2. c3 {[%clk 0:03:00]}  Nf6 {[%clk 0:02:53]} 3. e5 {[%clk 0:02:59]}  Nd5 {[%clk 0:02:54]} 4. d4 {[%clk 0:02:59]}  d6 {[%clk 0:02:54]} 5. c4 {[%clk 0:02:57]}  Nb6 {[%clk 0:02:49]} 6. dxc5 {[%clk 0:02:57]}  dxc5 {[%clk 0:02:47]} 7. Qxd8+ {[%clk 0:02:57]}  Kxd8 {[%clk 0:02:47]} 8. Nc3 {[%clk 0:02:57]}  Nc6 {[%clk 0:02:38]} 9. Bf4 {[%clk 0:02:48]}  Be6 {[%clk 0:02:38]} 10. O-O-O+ {[%clk 0:02:48]}  Ke8 {[%clk 0:02:36]} 11. Nd5 {[%clk 0:02:42]}  Rc8 {[%clk 0:02:29]} 12. Nf3 {[%clk 0:02:41]}  h6 {[%clk 0:02:21]} 13. h4 {[%clk 0:02:37]}  g6 {[%clk 0:02:21]} 14. Be2 {[%clk 0:02:28]}  Bg7 {[%clk 0:02:19]} 15. Rhe1 {[%clk 0:02:18]}  Nb4 {[%clk 0:01:46]} 16. Nxb6 {[%clk 0:02:07]}  axb6 {[%clk 0:01:44]} 17. a3 {[%clk 0:02:03]}  Nc6 {[%clk 0:01:43]} 18. b3 {[%clk 0:01:52]}  Rd8 {[%clk 0:01:09]} 19. Bd3 {[%clk 0:01:50]}  Rd7 {[%clk 0:01:07]} 20. Kc2 {[%clk 0:01:40]}  Kd8 {[%clk 0:01:07]} 21. Bd2 {[%clk 0:01:25]}  Kc8 {[%clk 0:01:05]} 22. Bc3 {[%clk 0:01:25]}  Rhd8 {[%clk 0:01:05]} 23. Be4 {[%clk 0:01:24]}  Rxd1 {[%clk 0:00:54]} 24. Rxd1 {[%clk 0:01:25]}  Bg4 {[%clk 0:00:53]} 25. Bd5 {[%clk 0:00:22]}  e6 {[%clk 0:00:44]} 26. Bxc6 {[%clk 0:00:21]}  bxc6 {[%clk 0:00:45]} 27. Rxd8+ {[%clk 0:00:18]}  Kxd8 {[%clk 0:00:45]} 28. Nd2 {[%clk 0:00:19]}  Bf5+ {[%clk 0:00:43]} 29. Kb2 {[%clk 0:00:18]}  b5 {[%clk 0:00:31]} 30. f3 {[%clk 0:00:17]}  h5 {[%clk 0:00:32]} 31. cxb5 {[%clk 0:00:16]}  cxb5 {[%clk 0:00:31]} 32. a4 {[%clk 0:00:17]}  b4 {[%clk 0:00:30]} 33. Nc4 {[%clk 0:00:16]}  bxc3+ {[%clk 0:00:29]} 34. Kxc3 {[%clk 0:00:17]}  Kc7 {[%clk 0:00:28]} 35. f4 {[%clk 0:00:16]}  Bf8 {[%clk 0:00:27]} 36. g3 {[%clk 0:00:16]}  Be7 {[%clk 0:00:28]} 37. Kb2 {[%clk 0:00:15]}  Kc6 {[%clk 0:00:25]} 38. Kc3 {[%clk 0:00:15]}  Be4 {[%clk 0:00:25]} 39. Na5+ {[%clk 0:00:16]}  Kc7 {[%clk 0:00:23]} 40. Nc4 {[%clk 0:00:16]}  Bd5 {[%clk 0:00:23]} 41. Ne3 {[%clk 0:00:16]}  Kc6 {[%clk 0:00:23]} 42. Nc2 {[%clk 0:00:15]}  Bd8 {[%clk 0:00:23]} 43. Ne3 {[%clk 0:00:15]}  Ba5+ {[%clk 0:00:22]} 44. Kc2 {[%clk 0:00:15]}  Be1 {[%clk 0:00:22]} 45. Nf1 {[%clk 0:00:15]}  Bg2 {[%clk 0:00:19]} 46. Ne3 {[%clk 0:00:15]}  Be4+ {[%clk 0:00:19]} 47. Kd1 {[%clk 0:00:15]}  Bxg3 {[%clk 0:00:19]} 48. Nc4 {[%clk 0:00:15]}  Bxf4 {[%clk 0:00:19]} 49. Nd6 {[%clk 0:00:16]}  Bd5 {[%clk 0:00:18]} 50. Nxf7 {[%clk 0:00:16]}  Bxb3+ {[%clk 0:00:18]} 51. Ke2 {[%clk 0:00:16]}  Bxa4 {[%clk 0:00:18]} 52. Kf3 {[%clk 0:00:17]}  Bd2 {[%clk 0:00:16]} 53. Ke4 {[%clk 0:00:17]}  c4 {[%clk 0:00:16]} 54. Nd8+ {[%clk 0:00:17]}  Kd7 {[%clk 0:00:16]} 55. Nb7 {[%clk 0:00:17]}  Bc6+ {[%clk 0:00:16]} 56. Kd4 {[%clk 0:00:18]}  Bxb7 {[%clk 0:00:16]} 0-1


[Site "https://www.chess.com"]

[Event "Titled Tuesday Blitz September 13 Late 2022"]
[White "Yoo, Christopher Woojin"]
[Black "Mirzoev, Azer"]
[WhiteFideId "30909694"]
[BlackFideId "13400304"]
[WhiteElo "2105"]
[BlackElo "2525"]
[Result "1-0"]
[Round "06"]
[TimeControl "180+1"]
[Date "2022.09.13"]
[WhiteClock "0:00:07"]
[BlackClock "0:00:03"]

1. e4 {[%clk 0:02:27]}  Nf6 {[%clk 0:02:58]} 2. e5 {[%clk 0:02:24]}  Nd5 {[%clk 0:02:59]} 3. d4 {[%clk 0:02:24]}  d6 {[%clk 0:02:59]} 4. Nf3 {[%clk 0:02:24]}  dxe5 {[%clk 0:02:57]} 5. Nxe5 {[%clk 0:02:24]}  c6 {[%clk 0:02:58]} 6. c4 {[%clk 0:02:13]}  Nb4 {[%clk 0:02:57]} 7. Be3 {[%clk 0:02:08]}  Bf5 {[%clk 0:02:52]} 8. Na3 {[%clk 0:02:08]}  Nd7 {[%clk 0:02:50]} 9. g4 {[%clk 0:01:45]}  Be4 {[%clk 0:01:42]} 10. f3 {[%clk 0:01:44]}  Bg6 {[%clk 0:01:42]} 11. Qd2 {[%clk 0:00:56]}  Nxe5 {[%clk 0:01:39]} 12. dxe5 {[%clk 0:00:56]}  Qxd2+ {[%clk 0:01:38]} 13. Kxd2 {[%clk 0:00:55]}  e6 {[%clk 0:01:33]} 14. Kc3 {[%clk 0:00:53]}  a5 {[%clk 0:01:31]} 15. Be2 {[%clk 0:00:50]}  Be7 {[%clk 0:01:29]} 16. h4 {[%clk 0:00:46]}  h6 {[%clk 0:01:22]} 17. h5 {[%clk 0:00:46]}  Bh7 {[%clk 0:01:23]} 18. Rhd1 {[%clk 0:00:45]}  f6 {[%clk 0:01:18]} 19. f4 {[%clk 0:00:40]}  fxe5 {[%clk 0:01:14]} 20. fxe5 {[%clk 0:00:41]}  O-O {[%clk 0:01:02]} 21. Rd7 {[%clk 0:00:39]}  Bg5 {[%clk 0:01:01]} 22. Bxg5 {[%clk 0:00:24]}  hxg5 {[%clk 0:01:02]} 23. Rf1 {[%clk 0:00:18]}  Rxf1 {[%clk 0:00:43]} 24. Bxf1 {[%clk 0:00:17]}  Nxa2+ {[%clk 0:00:44]} 25. Kd4 {[%clk 0:00:17]}  b6 {[%clk 0:00:41]} 26. c5 {[%clk 0:00:15]}  bxc5+ {[%clk 0:00:37]} 27. Kxc5 {[%clk 0:00:16]}  Nb4 {[%clk 0:00:34]} 28. Nc4 {[%clk 0:00:15]}  Be4 {[%clk 0:00:32]} 29. Nd6 {[%clk 0:00:11]}  Bd5 {[%clk 0:00:31]} 30. Bc4 {[%clk 0:00:05]}  Rf8 {[%clk 0:00:31]} 31. Bxd5 {[%clk 0:00:04]}  cxd5 {[%clk 0:00:31]} 32. Nb7 {[%clk 0:00:03]}  Rf4 {[%clk 0:00:28]} 33. Nd8 {[%clk 0:00:03]}  Nd3+ {[%clk 0:00:28]} 34. Kd6 {[%clk 0:00:03]}  Re4 {[%clk 0:00:18]} 35. Nxe6 {[%clk 0:00:03]}  Rxe5 {[%clk 0:00:15]} 36. Rxg7+ {[%clk 0:00:03]}  Kh8 {[%clk 0:00:15]} 37. Rxg5 {[%clk 0:00:03]}  Re2 {[%clk 0:00:13]} 38. Rxd5 {[%clk 0:00:02]}  Nxb2 {[%clk 0:00:13]} 39. Nf4 {[%clk 0:00:02]}  Re4 {[%clk 0:00:12]} 40. Rf5 {[%clk 0:00:03]}  Nc4+ {[%clk 0:00:11]} 41. Kd5 {[%clk 0:00:03]}  Ne3+ {[%clk 0:00:09]} 42. Kxe4 {[%clk 0:00:03]}  Nxf5 {[%clk 0:00:09]} 43. Kxf5 {[%clk 0:00:04]}  a4 {[%clk 0:00:10]} 44. Nd3 {[%clk 0:00:04]}  a3 {[%clk 0:00:10]} 45. Nc1 {[%clk 0:00:05]}  Kg7 {[%clk 0:00:10]} 46. Na2 {[%clk 0:00:06]}  Kh6 {[%clk 0:00:04]} 47. Kf6 {[%clk 0:00:05]}  Kh7 {[%clk 0:00:03]} 48. g5 {[%clk 0:00:06]}  Kg8 {[%clk 0:00:03]} 49. g6 {[%clk 0:00:07]} 1-0


[Site "https://www.chess.com"]